fUSD/lending_fUSD_20250101
["ID","MTS","AMOUNT","RATE_DAILY","PERIOD"]
[347328288,1735693846822,-2069.07,0.00011174,2]
[347328290,1735693846831,-500.0,0.00011174,2]
[347328292,1735693846840,-500.0,0.00011174,2]
[347328294,1735693846849,-1046.05,0.00011174,2]
[347328296,1735693846858,-6978.85,0.00011174,2]
[347328298,1735693846867,-280.03793067,0.00011174,2]
[347328300,1735693846876,-500.0,0.00011174,2]
[347328302,1735693846885,-500.0,0.00011174,2]
[347328304,1735693846894,-995.98,0.00011174,2]
[347328306,1735693846903,-500.0,0.00011174,2]
[347328308,1735693846911,-3872.06,0.00011174,2]
[347328310,1735693846920,-268.99078743,0.00011174,2]
[347328312,1735693846929,-500.0,0.00011174,2]
[347328314,1735693846939,-1942.33,0.00011174,2]
[347328315,1735693846950,-893.56,0.00011174,2]
[347328316,1735693846959,-1948.54,0.00011174,2]
[347328317,1735693846969,-1063.36,0.00011174,2]
[347328318,1735693846978,-1108.39,0.00011174,2]
[347328319,1735693846987,-500.0,0.00011174,2]
[347328320,1735693846996,-1454.64,0.00011174,2]
[347328321,1735693847005,-706.37,0.00011174,2]
[347328322,1735693847014,-500.0,0.00011174,2]
[347328323,1735693847023,-2108.21,0.00011174,2]
[347328324,1735693847032,-1689.77,0.00011174,2]
[347328325,1735693847041,-892.0,0.00011174,2]
[347328326,1735693847050,-500.0,0.00011174,2]
[347328327,1735693847059,-2633.78,0.00011174,2]
[347328328,1735693847068,-831.07,0.00011174,2]
[347328329,1735693847078,-707.95,0.00011174,2]
[347328330,1735693847087,-830.29,0.00011174,2]
[347328331,1735693847095,-500.0,0.00011174,2]
[347328332,1735693847104,-772.23,0.00011174,2]
[347328333,1735693847113,-5377.78,0.00011174,2]
[347328334,1735693847122,-500.0,0.00011174,2]
[347328335,1735693847131,-5143.69,0.00011174,2]
[347328336,1735693847140,-500.0,0.00011174,2]
[347328337,1735693847149,-500.0,0.00011174,2]
[347328338,1735693847163,-500.0,0.00011174,2]
[347328339,1735693847172,-873.17,0.00011174,2]
[347328340,1735693847181,-3761.43,0.00011174,2]
[347328341,1735693847190,-2244.79,0.00011174,2]
[347328342,1735693847200,-500.0,0.00011174,2]
[347328343,1735693847209,-500.0,0.00011174,2]
[347328344,1735693847219,-500.0,0.00011174,2]
[347328345,1735693847228,-4594.72,0.00011174,2]
[347328346,1735693847238,-500.0,0.00011174,2]
[347328347,1735693847247,-530.94,0.00011174,2]
[347328348,1735693847257,-500.0,0.00011174,2]
[347328349,1735693847266,-1042.61,0.00011174,2]
[347328350,1735693847275,-3066.69,0.00011174,2]
[347328351,1735693847285,-287.09739468,0.00011174,2]
[347328352,1735693847294,-4507.44,0.00011174,2]
[347328353,1735693847304,-1912.72,0.00011174,2]
[347328354,1735693847313,-500.0,0.00011174,2]
[347328355,1735693847322,-500.0,0.00011174,2]
[347328356,1735693847331,-500.0,0.00011174,2]
[347328357,1735693847341,-4572.79,0.00011174,2]
[347328358,1735693847350,-2458.69,0.00011174,2]
[347328359,1735693847359,-2913.16,0.00011174,2]
[347328360,1735693847368,-1414.39,0.00011174,2]
[347328361,1735693847377,-500.0,0.00011174,2]
[347328362,1735693847388,-500.0,0.00011174,2]
[347328363,1735693847398,-500.0,0.00011174,2]
[347328364,1735693847411,-500.0,0.00011174,2]
[347328365,1735693847420,-325.83380508,0.00011174,2]
[347328366,1735693847430,-2164.46,0.00011174,2]
[347328367,1735693847439,-500.0,0.00011174,2]
[347328368,1735693847448,-551.93,0.00011174,2]
[347328369,1735693847457,-500.0,0.00011174,2]
[347328370,1735693847468,-500.0,0.00011174,2]
[347328371,1735693847477,-500.0,0.00011174,2]
[347328372,1735693847486,-500.0,0.00011174,2]
[347328373,1735693847495,-500.0,0.00011174,2]
[347328374,1735693847503,-1547.79,0.00011174,2]
[347328375,1735693847512,-500.0,0.00011174,2]
[347328376,1735693847522,-500.0,0.00011174,2]
[347328377,1735693847530,-500.0,0.00011174,2]
[347328378,1735693847539,-8768.37,0.00011174,2]
[347328379,1735693847549,-500.0,0.00011174,2]
[347328380,1735693847559,-519.87,0.00011174,2]
[347328381,1735693847568,-500.0,0.00011174,2]
[347328382,1735693847577,-500.0,0.00011174,2]
[347328383,1735693847586,-500.0,0.00011174,2]
[347328384,1735693847595,-1351.61,0.00011174,2]
[347328385,1735693847604,-505.56,0.00011174,2]
[347328386,1735693847614,-1397.71,0.00011174,2]
[347328387,1735693847624,-500.0,0.00011174,2]
[347328388,1735693847633,-1278.35,0.00011174,2]
[347328389,1735693847642,-4051.17,0.00011174,2]
[347328390,1735693847652,-578.33339751,0.00011174,2]
[347328391,1735693847666,-500.0,0.00011174,2]
[347328392,1735693847675,-500.0,0.00011174,2]
[347328393,1735693847685,-500.0,0.00011174,2]
[347328394,1735693847694,-500.0,0.00011174,2]
[347328395,1735693847704,-679.09,0.00011174,2]
[347328396,1735693847713,-2218.17,0.00011174,2]
[347328397,1735693847722,-1277.22,0.00011174,2]
[347328398,1735693847731,-500.0,0.00011174,2]
[347328399,1735693847740,-824.87,0.00011174,2]
[347328400,1735693847749,-1144.96,0.00011174,2]
[347328401,1735693847758,-889.21,0.00011174,2]
[347328402,1735693847767,-500.0,0.00011174,2]
[347328403,1735693847776,-1843.76,0.00011174,2]
[347328404,1735693847784,-500.0,0.00011174,2]
[347328405,1735693847793,-936.0,0.00011174,2]
[347328406,1735693847802,-560.53946884,0.00011174,2]
[347328407,1735693847811,-500.0,0.00011174,2]
[347328408,1735693847820,-3004.11,0.00011174,2]
[347328409,1735693847829,-500.0,0.00011174,2]
[347328410,1735693847838,-592.21,0.00011174,2]
[347328411,1735693847847,-500.0,0.00011174,2]
[347328412,1735693847856,-500.0,0.00011174,2]
[347328413,1735693847866,-5239.58,0.00011174,2]
[347328414,1735693847875,-500.0,0.00011174,2]
[347328415,1735693847884,-1586.72,0.00011174,2]
[347328416,1735693847893,-982.36,0.00011174,2]
[347328417,1735693847905,-500.0,0.00011174,2]
[347328418,1735693847914,-500.0,0.00011174,2]
[347328419,1735693847923,-845.51,0.00011174,2]
[347328420,1735693847932,-500.0,0.00011174,2]
[347328421,1735693847941,-818.09,0.00011174,2]
[347328422,1735693847950,-812.37,0.00011174,2]
[347328423,1735693847959,-920.96,0.00011174,2]
[347328424,1735693847968,-4726.94,0.00011174,2]
[347328425,1735693847977,-500.0,0.00011174,2]
[347328426,1735693847986,-500.0,0.00011174,2]
[347328427,1735693847995,-1351.05,0.00011174,2]
[347328428,1735693848003,-3004.12,0.00011174,2]
[347328429,1735693848013,-500.0,0.00011174,2]
[347328430,1735693848022,-747.89,0.00011174,2]
[347328431,1735693848031,-500.0,0.00011174,2]
[347328432,1735693848040,-500.0,0.00011174,2]
[347328433,1735693848049,-500.0,0.00011174,2]
[347328434,1735693848058,-500.0,0.00011174,2]
[347328435,1735693848067,-4928.67,0.00011174,2]
[347328436,1735693848076,-500.0,0.00011174,2]
[347328437,1735693848085,-570.89,0.00011174,2]
[347328438,1735693848094,-500.0,0.00011174,2]
[347328439,1735693848103,-1061.16,0.00011174,2]
[347328440,1735693848112,-937.37,0.00011174,2]
[347328441,1735693848121,-500.0,0.00011174,2]
[347328442,1735693848131,-806.23,0.00011174,2]
[347328443,1735693848140,-500.0,0.00011174,2]
[347328444,1735693848149,-1094.32,0.00011174,2]
[347328445,1735693848160,-930.59,0.00011174,2]
[347328446,1735693848169,-1486.68,0.00011174,2]
[347328447,1735693848178,-500.0,0.00011174,2]
[347328448,1735693848187,-989.47,0.00011174,2]
[347328449,1735693848196,-1743.57,0.00011174,2]
[347328450,1735693848205,-5558.36,0.00011174,2]
[347328451,1735693848214,-865.89,0.00011174,2]
[347328452,1735693848224,-500.0,0.00011174,2]
[347328453,1735693848233,-500.0,0.00011174,2]
[347328454,1735693848242,-500.0,0.00011174,2]
[347328455,1735693848251,-2661.37,0.00011174,2]
[347328456,1735693848260,-500.0,0.00011174,2]
[347328457,1735693848269,-500.0,0.00011174,2]
[347328458,1735693848278,-746.53,0.00011174,2]
[347328459,1735693848288,-1290.8,0.00011174,2]
[347328460,1735693848297,-1159.42,0.00011174,2]
[347328461,1735693848306,-500.0,0.00011174,2]
[347328462,1735693848315,-500.0,0.00011174,2]
[347328463,1735693848324,-500.0,0.00011174,2]
[347328464,1735693848333,-500.0,0.00011174,2]
[347328465,1735693848343,-2557.21,0.00011174,2]
[347328466,1735693848352,-500.0,0.00011174,2]
[347328467,1735693848362,-500.0,0.00011174,2]
[347328468,1735693848372,-1369.46,0.00011174,2]
[347328469,1735693848381,-500.0,0.00011174,2]
[347328470,1735693848394,-500.0,0.00011174,2]
[347328471,1735693848405,-500.0,0.00011174,2]
[347328472,1735693848414,-500.0,0.00011174,2]
[347328473,1735693848423,-8574.96,0.00011174,2]
[347328474,1735693848434,-500.0,0.00011174,2]
[347328475,1735693848444,-848.25,0.00011174,2]
[347328476,1735693848453,-500.0,0.00011174,2]
[347328477,1735693848464,-1134.6,0.00011174,2]
[347328478,1735693848473,-828.8,0.00011174,2]
[347328479,1735693848484,-1694.75,0.00011174,2]
[347328480,1735693848493,-500.0,0.00011174,2]
[347328481,1735693848502,-500.0,0.00011174,2]
[347328482,1735693848511,-500.0,0.00011174,2]
[347328483,1735693848521,-600.19,0.00011174,2]
[347328484,1735693848530,-2165.55,0.00011174,2]
[347328485,1735693848539,-505.87604171,0.00011174,2]
[347328486,1735693848548,-1663.05,0.00011174,2]
[347328487,1735693848558,-500.0,0.00011174,2]
[347328488,1735693848567,-1533.12,0.00011174,2]
[347328489,1735693848577,-500.0,0.00011174,2]
[347328490,1735693848586,-1180.8,0.00011174,2]
[347328491,1735693848595,-585.06,0.00011174,2]
[347328492,1735693848604,-500.0,0.00011174,2]
[347328493,1735693848614,-1224.57,0.00011174,2]
[347328494,1735693848623,-2778.92,0.00011174,2]
[347328495,1735693848632,-658.45,0.00011174,2]
[347328496,1735693848641,-348.68450173,0.00011174,2]
[347328497,1735693848650,-500.0,0.00011174,2]
[347328498,1735693848661,-3223.95,0.00011174,2]
[347328499,1735693848670,-12883.42,0.00011174,2]
[347328500,1735693848679,-5936.8,0.00011174,2]
[347328501,1735693848688,-500.0,0.00011174,2]
[347328502,1735693848697,-500.0,0.00011174,2]
[347328503,1735693848706,-1550.37,0.00011174,2]
[347328504,1735693848716,-500.0,0.00011174,2]
[347328505,1735693848725,-500.0,0.00011174,2]
[347328506,1735693848734,-500.0,0.00011174,2]
[347328507,1735693848743,-2146.14,0.00011174,2]
[347328508,1735693848752,-3182.26,0.00011174,2]
[347328509,1735693848761,-2784.31,0.00011174,2]
[347328510,1735693848770,-500.0,0.00011174,2]
[347328511,1735693848780,-1023.18,0.00011174,2]
[347328512,1735693848789,-3651.6,0.00011174,2]
[347328513,1735693848798,-500.0,0.00011174,2]
[347328514,1735693848807,-632.99,0.00011174,2]
[347328515,1735693849068,-2539.07,0.00011174,2]
[347328516,1735693849078,-683.2,0.00011174,2]
[347328517,1735693849087,-1393.58,0.00011174,2]
[347328518,1735693849097,-1165.88,0.00011174,2]
[347328519,1735693849106,-7807.55,0.00011174,2]
[347328520,1735693849115,-500.0,0.00011174,2]
[347328521,1735693849125,-500.0,0.00011174,2]
[347328522,1735693849134,-2669.3,0.00011174,2]
[347328523,1735693849144,-2810.11,0.00011174,2]
[347328524,1735693849155,-500.0,0.00011174,2]
[347328525,1735693849164,-5902.11,0.00011174,2]
[347328526,1735693849173,-500.0,0.00011174,2]
[347328527,1735693849182,-500.0,0.00011174,2]
[347328528,1735693849192,-500.0,0.00011174,2]
[347328529,1735693849201,-500.0,0.00011174,2]
[347328530,1735693849210,-2317.65,0.00011174,2]
[347328531,1735693849219,-1350.46,0.00011174,2]
[347328532,1735693849229,-500.0,0.00011174,2]
[347328533,1735693849238,-500.0,0.00011174,2]
[347328534,1735693849247,-948.47,0.00011174,2]
[347328535,1735693849257,-2155.17,0.00011174,2]
[347328536,1735693849266,-500.0,0.00011174,2]
[347328537,1735693849275,-5901.24,0.00011174,2]
[347328538,1735693849284,-1102.05,0.00011174,2]
[347328539,1735693849293,-500.0,0.00011174,2]
[347328540,1735693849302,-500.0,0.00011174,2]
[347328541,1735693849312,-550.60272533,0.00011174,2]
[347328542,1735693849321,-500.0,0.00011174,2]
[347328543,1735693849330,-2280.395133,0.00011174,2]
[347328544,1735693849339,-500.0,0.00011174,2]
[347328545,1735693849348,-1725.11,0.00011174,2]
[347328546,1735693849357,-4417.7,0.00011174,2]
[347328547,1735693849367,-5807.77,0.00011174,2]
[347328548,1735693849376,-1236.72,0.00011174,2]
[347328549,1735693849387,-500.0,0.00011174,2]
[347328550,1735693849397,-7476.32,0.00011174,2]
[347328551,1735693849406,-500.0,0.00011174,2]
[347328552,1735693849415,-664.54,0.00011174,2]
[347328553,1735693849424,-500.0,0.00011174,2]
[347328554,1735693849434,-500.0,0.00011174,2]
[347328555,1735693849444,-500.0,0.00011174,2]
[347328556,1735693849453,-500.0,0.00011174,2]
[347328557,1735693849463,-500.0,0.00011174,2]
[347328558,1735693849473,-537.68,0.00011174,2]
[347328559,1735693849482,-1694.4,0.00011174,2]
[347328560,1735693849491,-1336.53,0.00011174,2]
[347328561,1735693849501,-500.0,0.00011174,2]
[347328562,1735693849510,-1604.43,0.00011174,2]
[347328563,1735693849520,-2261.739768,0.00011174,2]
[347328564,1735693849529,-1497.76,0.00011174,2]
[347328565,1735693849539,-500.0,0.00011174,2]
[347328566,1735693849548,-500.0,0.00011174,2]
[347328567,1735693849558,-653.71,0.00011174,2]
[347328568,1735693849568,-500.0,0.00011174,2]
[347328569,1735693849577,-500.0,0.00011174,2]
[347328570,1735693849587,-547.53,0.00011174,2]
[347328571,1735693849596,-2892.87,0.00011174,2]
[347328572,1735693849606,-676.47,0.00011174,2]
[347328573,1735693849615,-168.469988,0.00011174,2]
[347328574,1735693849624,-500.0,0.00011174,2]
[347328575,1735693849634,-519.67,0.00011174,2]
[347328576,1735693849643,-500.0,0.00011174,2]
[347328577,1735693849652,-152.904377,0.00011174,2]
[347328578,1735693849663,-715.36,0.00011174,2]
[347328579,1735693849673,-500.0,0.00011174,2]
[347328580,1735693849683,-8176.28,0.00011174,2]
[347328581,1735693849693,-500.0,0.00011174,2]
[347328582,1735693849702,-1206.77,0.00011174,2]
[347328583,1735693849712,-500.0,0.00011174,2]
[347328584,1735693849722,-1262.89,0.00011174,2]
[347328585,1735693849731,-756.73,0.00011174,2]
[347328586,1735693849741,-500.0,0.00011174,2]
[347328587,1735693849750,-1722.52,0.00011174,2]
[347328588,1735693849760,-500.0,0.00011174,2]
[347328589,1735693849769,-310.55275886,0.00011174,2]
[347328590,1735693849779,-6124.71,0.00011174,2]
[347328591,1735693849788,-3374.7,0.00011174,2]
[347328592,1735693849798,-936.8,0.00011174,2]
[347328593,1735693849808,-500.0,0.00011174,2]
[347328594,1735693849817,-1009.5,0.00011174,2]
[347328595,1735693849827,-500.0,0.00011174,2]
[347328596,1735693849837,-500.0,0.00011174,2]
[347328597,1735693849846,-500.0,0.00011174,2]
[347328598,1735693849855,-3165.38,0.00011174,2]
[347328599,1735693849865,-785.26,0.00011174,2]
[347328600,1735693849875,-500.0,0.00011174,2]
[347328601,1735693849884,-2307.99,0.00011174,2]
[347328602,1735693849893,-500.0,0.00011174,2]
[347328603,1735693849903,-500.0,0.00011174,2]
[347328604,1735693849913,-1084.04,0.00011174,2]
[347328605,1735693849923,-615.93,0.00011174,2]
[347328606,1735693849933,-718.49,0.00011174,2]
[347328607,1735693849942,-2006.5,0.00011174,2]
[347328608,1735693849951,-2180.33,0.00011174,2]
[347328609,1735693849960,-500.0,0.00011174,2]
[347328610,1735693849969,-1050.66,0.00011174,2]
[347328611,1735693849978,-513.61268502,0.00011174,2]
[347328612,1735693849987,-500.0,0.00011174,2]
[347328613,1735693849997,-2836.14,0.00011174,2]
[347328614,1735693850007,-2816.45,0.00011174,2]
[347328615,1735693850017,-957.65,0.00011174,2]
[347328616,1735693850026,-575.32742581,0.00011174,2]
[347328617,1735693850036,-500.0,0.00011174,2]
[347328618,1735693850045,-1680.36,0.00011174,2]
[347328619,1735693850054,-1493.12,0.00011174,2]
[347328620,1735693850064,-500.0,0.00011174,2]
[347328621,1735693850073,-2411.46,0.00011174,2]
[347328622,1735693850083,-500.0,0.00011174,2]
[347328623,1735693850092,-3015.61,0.00011174,2]
[347328624,1735693850101,-3430.28,0.00011174,2]
[347328625,1735693850111,-585.02,0.00011174,2]
[347328626,1735693850120,-1363.82,0.00011174,2]
[347328627,1735693850131,-500.0,0.00011174,2]
[347328628,1735693850142,-936.23,0.00011174,2]
[347328629,1735693850152,-2813.14,0.00011174,2]
[347328630,1735693850162,-3100.57,0.00011174,2]
[347328631,1735693850172,-500.0,0.00011174,2]
[347328632,1735693850181,-1348.15,0.00011174,2]
[347328633,1735693850190,-500.0,0.00011174,2]
[347328634,1735693850199,-1499.5,0.00011174,2]
[347328635,1735693850209,-532.6580343,0.00011174,2]
[347328636,1735693850219,-500.0,0.00011174,2]
[347328637,1735693850228,-3218.95,0.00011174,2]
[347328638,1735693850238,-500.08,0.00011174,2]
[347328639,1735693850247,-500.0,0.00011174,2]
[347328640,1735693850257,-500.0,0.00011174,2]
[347328641,1735693850266,-1635.07,0.00011174,2]
[347328642,1735693850276,-2012.25,0.00011174,2]
[347328643,1735693850285,-1969.02,0.00011174,2]
[347328644,1735693850294,-500.0,0.00011174,2]
[347328645,1735693850305,-500.0,0.00011174,2]
[347328646,1735693850315,-500.0,0.00011174,2]
[347328647,1735693850324,-500.0,0.00011174,2]
[347328648,1735693850333,-3058.6,0.00011174,2]
[347328649,1735693850343,-500.0,0.00011174,2]
[347328650,1735693850352,-500.0,0.00011174,2]
[347328651,1735693850362,-500.0,0.00011174,2]
[347328652,1735693850372,-4982.23,0.00011174,2]
[347328653,1735693850382,-3117.36,0.00011174,2]
[347328654,1735693850394,-500.0,0.00011174,2]
[347328655,1735693850403,-534.78,0.00011174,2]
[347328656,1735693850413,-643.68,0.00011174,2]
[347328657,1735693850422,-500.0,0.00011174,2]
[347328658,1735693850434,-500.0,0.00011174,2]
[347328659,1735693850443,-500.0,0.00011174,2]
[347328660,1735693850453,-500.0,0.00011174,2]
[347328661,1735693850462,-500.0,0.00011174,2]
[347328662,1735693850471,-1866.49,0.00011174,2]
[347328663,1735693850481,-500.0,0.00011174,2]
[347328664,1735693850491,-364.98,0.00011174,2]
[347328665,1735693850500,-2097.63,0.00011174,2]
[347328666,1735693850509,-9229.41,0.00011174,2]
[347328667,1735693850519,-1549.19,0.00011174,2]
[347328668,1735693850528,-1032.25,0.00011174,2]
[347328669,1735693850538,-500.0,0.00011174,2]
[347328670,1735693850547,-500.0,0.00011174,2]
[347328671,1735693850557,-267.53167893,0.00011174,2]
[347328672,1735693850566,-500.0,0.00011174,2]
[347328673,1735693850576,-1447.46,0.00011174,2]
[347328674,1735693850587,-930.87,0.00011174,2]
[347328675,1735693850597,-500.0,0.00011174,2]
[347328676,1735693850606,-500.0,0.00011174,2]
[347328677,1735693850616,-500.0,0.00011174,2]
[347328678,1735693850625,-1575.24,0.00011174,2]
[347328679,1735693850635,-3890.73,0.00011174,2]
[347328680,1735693850645,-598.35,0.00011174,2]
[347328681,1735693850654,-1410.93,0.00011174,2]
[347328682,1735693850666,-500.0,0.00011174,2]
[347328683,1735693850677,-500.0,0.00011174,2]
[347328684,1735693850687,-697.25,0.00011174,2]
[347328685,1735693850696,-530.41,0.00011174,2]
[347328686,1735693850706,-2708.56,0.00011174,2]
[347328687,1735693850715,-693.62,0.00011174,2]
[347328688,1735693850724,-500.0,0.00011174,2]
[347328689,1735693850734,-2350.56,0.00011174,2]
[347328690,1735693850743,-500.0,0.00011174,2]
[347328691,1735693850752,-1702.39,0.00011174,2]
[347328692,1735693850762,-1103.64,0.00011174,2]
[347328693,1735693850771,-500.0,0.00011174,2]
[347328694,1735693850781,-500.0,0.00011174,2]
[347328695,1735693850790,-5509.32,0.00011174,2]
[347328696,1735693850799,-3806.3,0.00011174,2]
[347328697,1735693850808,-3271.17,0.00011174,2]
[347328698,1735693850818,-2192.62,0.00011174,2]
[347328699,1735693850827,-798.42,0.00011174,2]
[347328700,1735693850836,-500.0,0.00011174,2]
[347328701,1735693850846,-4275.75,0.00011174,2]
[347328702,1735693850856,-500.0,0.00011174,2]
[347328703,1735693850866,-1120.62,0.00011174,2]
[347328704,1735693850875,-500.0,0.00011174,2]
[347328705,1735693850884,-1797.61,0.00011174,2]
[347328706,1735693850894,-500.0,0.00011174,2]
[347328707,1735693850903,-25120.59,0.00011174,2]
[347328708,1735693850917,-4377.99,0.00011174,2]
[347328709,1735693850927,-307.69830792,0.00011174,2]
[347328710,1735693850936,-500.0,0.00011174,2]
[347328711,1735693850945,-500.0,0.00011174,2]
[347328712,1735693850954,-1720.85,0.00011174,2]
[347328713,1735693850964,-500.0,0.00011174,2]
[347328714,1735693850974,-715.14,0.00011174,2]
[347328715,1735693850983,-19710.72,0.00011174,2]
[347328716,1735693850992,-2392.51,0.00011174,2]
[347328717,1735693851001,-500.0,0.00011174,2]
[347328718,1735693851010,-500.0,0.00011174,2]
[347328719,1735693851019,-1400.84,0.00011174,2]
[347328720,1735693851028,-1246.28,0.00011174,2]
[347328721,1735693851037,-500.0,0.00011174,2]
[347328722,1735693851046,-13893.35,0.00011174,2]
[347328723,1735693851055,-646.12,0.00011174,2]
[347328724,1735693851064,-500.0,0.00011174,2]
[347328725,1735693851073,-500.0,0.00011174,2]
[347328726,1735693851082,-362.5798875,0.00011174,2]
[347328727,1735693851092,-1060.96,0.00011174,2]
[347328728,1735693851101,-810.86,0.00011174,2]
[347328729,1735693851110,-500.0,0.00011174,2]
[347328730,1735693851119,-5341.28,0.00011174,2]
[347328731,1735693851128,-1088.14,0.00011174,2]
[347328732,1735693851137,-3054.21,0.00011174,2]
[347328733,1735693851146,-956.98,0.00011174,2]
[347328734,1735693851157,-500.0,0.00011174,2]
[347328735,1735693851169,-522.3393,0.00011175,2]
[347328736,1735693851178,-864.4592,0.00011175,2]
[347328737,1735693851186,-151.27,0.00011175,2]
[347328738,1735693851195,-1398.9266,0.00011175,2]
[347328739,1735693851204,-14658.0981,0.00011175,2]
[347328740,1735693851213,-7274.7812,0.00011175,2]
[347328741,1735693851222,-5787.7298,0.00011175,2]
[347328742,1735693851231,-500.0,0.00011175,2]
[347328743,1735693851240,-29173.7518,0.00011175,2]
[347328744,1735693851249,-100259.3003,0.00011175,2]
[347328745,1735693851258,-150.0,0.00011207,2]
[347328746,1735693851269,-150.0,0.0001121,2]
[347328747,1735693851277,-150.0,0.0001122,2]
[347328748,1735693851288,-197.74740744,0.00011228,2]
[347328749,1735693851297,-150.0,0.00011228,2]
[347328750,1735693851306,-150.0,0.00011236,2]
[347328751,1735693851316,-150.0,0.00011242,2]
[347328752,1735693851325,-150.0,0.00011243,2]
[347328753,1735693851335,-150.0,0.00011254,2]
[347328754,1735693851344,-150.0,0.00011256,2]
[347328755,1735693851354,-150.0,0.00011268,2]
[347328756,1735693851362,-4738.33,0.00011273,2]
[347328757,1735693851372,-13953.72,0.00011273,2]
[347328758,1735693851381,-4027.22,0.00011273,2]
[347328759,1735693851395,-1906.73,0.00011273,2]
[347328760,1735693851404,-5096.3,0.00011273,2]
[347328761,1735693851414,-5260.24,0.00011273,2]
[347328762,1735693851423,-491.79,0.00011274,2]
[347328763,1735693851433,-494.82,0.00011274,2]
[347328764,1735693851442,-3615.28,0.00011274,2]
[347328765,1735693851451,-4805.47,0.00011274,2]
[347328766,1735693851460,-500.0,0.00011274,2]
[347328767,1735693851471,-3712.52,0.00011274,2]
[347328768,1735693851480,-3253.34,0.00011274,2]
[347328769,1735693851489,-674.69,0.00011274,2]
[347328770,1735693851498,-500.0,0.00011274,2]
[347328771,1735693851507,-531.01,0.00011274,2]
[347328772,1735693851516,-4445.81,0.00011274,2]
[347328773,1735693851525,-876.14,0.00011274,2]
[347328774,1735693851534,-500.0,0.00011274,2]
[347328775,1735693851543,-5162.6,0.00011274,2]
[347328776,1735693851552,-3555.91,0.00011274,2]
[347328777,1735693851561,-5639.06,0.00011274,2]
[347328778,1735693851570,-1293.51,0.00011274,2]
[347328779,1735693851579,-1725.93,0.00011274,2]
[347328780,1735693851588,-5617.68,0.00011274,2]
[347328781,1735693851597,-3376.57,0.00011274,2]
[347328782,1735693851608,-500.0,0.00011274,2]
[347328783,1735693851619,-500.0,0.00011274,2]
[347328784,1735693851629,-987.82517384,0.00011274,2]
[347328785,1735693851653,-2126.39482616,0.00011274,2]
[347328786,1735693851664,-959.57646279,0.00011274,2]
[347328787,1735693851697,-1500.0,0.00011274,2]
[347328788,1735693851707,-532.19886339,0.00011274,2]
[347328789,1735693851718,-838.94467382,0.00011274,2]
[347328790,1735693851727,-365.44836808,0.00011274,2]
[347328791,1735693911254,1700.2249,0.00010975,2]
[347328792,1735693935672,2092.2631,0.00010975,2]
[347328793,1735693946078,150.0,0.00010925,2]
[347328794,1735693946166,150.0,0.00011001,2]
[347328795,1735693946271,150.0,0.00010948,2]
[347328796,1735693946327,150.0,0.00010955,2]
[347328797,1735693946429,150.0,0.0001097,2]
[347328798,1735693946515,150.0,0.00010939,2]
[347328799,1735693946640,150.0,0.00010951,2]
[347328800,1735693946756,150.0,0.00010958,2]